[Event "Early-Titled-Tuesday-Blitz-February-06-2024"]
[Site "Chess.com"]
[Date "2024.02.06"]
[Round "3"]
[White "laskakid"]
[Black "zverr1"]
[Result "1/2-1/2"]
[WhiteElo "2353"]
[BlackElo "2553"]
[TimeControl "180+1"]
[EndTime "8:28:34 PST"]
[Termination "Game drawn by repetition"]

1. d4 {[%clk 0:03:00.9]} 1... Nf6 {[%clk 0:03:00]} 2. c4 {[%clk 0:03:01.2]} 2...
g6 {[%clk 0:02:59.1]} 3. Nc3 {[%clk 0:03:01.6]} 3... d5 {[%clk 0:02:59.6]} 4.
Nf3 {[%clk 0:03:01.3]} 4... Bg7 {[%clk 0:02:59.8]} 5. Bg5 {[%clk 0:03:00.9]}
5... Ne4 {[%clk 0:03:00]} 6. Bf4 {[%clk 0:03:01]} 6... Nxc3 {[%clk 0:02:58.5]}
7. bxc3 {[%clk 0:03:01.3]} 7... c6 {[%clk 0:02:59.2]} 8. e3 {[%clk 0:02:58.5]}
8... O-O {[%clk 0:02:59.7]} 9. Be2 {[%clk 0:02:52.3]} 9... Nd7 {[%clk
0:02:52.8]} 10. O-O {[%clk 0:02:52.3]} 10... Nf6 {[%clk 0:02:50.8]} 11. h3
{[%clk 0:02:46.9]} 11... Ne4 {[%clk 0:02:49.9]} 12. Qb3 {[%clk 0:02:45.3]} 12...
Qa5 {[%clk 0:02:47.7]} 13. Rfc1 {[%clk 0:02:41]} 13... Be6 {[%clk 0:02:23.2]}
14. Bd3 {[%clk 0:02:08.1]} 14... dxc4 {[%clk 0:01:48.9]} 15. Bxc4 {[%clk
0:02:09]} 15... Bxc4 {[%clk 0:01:48.3]} 16. Qxc4 {[%clk 0:02:08.7]} 16... Rac8
{[%clk 0:01:40]} 17. Rab1 {[%clk 0:02:01]} 17... b5 {[%clk 0:01:36.1]} 18. Qb3
{[%clk 0:01:54.3]} 18... a6 {[%clk 0:01:26.3]} 19. c4 {[%clk 0:01:48.4]} 19...
Nd6 {[%clk 0:01:19.1]} 20. c5 {[%clk 0:01:37]} 20... Nc4 {[%clk 0:01:15.3]} 21.
a4 {[%clk 0:01:25.3]} 21... Ra8 {[%clk 0:01:00.6]} 22. Ra1 {[%clk 0:01:16]}
22... Qd8 {[%clk 0:00:36.2]} 23. Qd3 {[%clk 0:00:55.9]} 23... Qd7 {[%clk
0:00:30.3]} 24. Ra2 {[%clk 0:00:51.8]} 24... Rfd8 {[%clk 0:00:29.8]} 25. Qe4
{[%clk 0:00:37.9]} 25... Qd5 {[%clk 0:00:09.6]} 26. Qxe7 {[%clk 0:00:25.8]}
26... Nxe3 {[%clk 0:00:04.4]} 27. Re2 {[%clk 0:00:18.4]} 27... Nf5 {[%clk
0:00:04.8]} 28. Qb7 {[%clk 0:00:16.6]} 28... Bf6 {[%clk 0:00:03.1]} 29. Ne5
{[%clk 0:00:13.6]} 29... bxa4 {[%clk 0:00:02.6]} 30. Nxc6 {[%clk 0:00:10.5]}
30... Rd7 {[%clk 0:00:03.3]} 31. Qxa8+ {[%clk 0:00:09.7]} 31... Kg7 {[%clk
0:00:04]} 32. Qxa6 {[%clk 0:00:08.7]} 32... Nxd4 {[%clk 0:00:02.1]} 33. Nxd4
{[%clk 0:00:08.2]} 33... Qxd4 {[%clk 0:00:02.8]} 34. c6 {[%clk 0:00:08.1]} 34...
Qxf4 {[%clk 0:00:02.5]} 35. cxd7 {[%clk 0:00:07.9]} 35... Qxc1+ {[%clk
0:00:02.9]} 36. Kh2 {[%clk 0:00:07.1]} 36... Qc7+ {[%clk 0:00:03.7]} 37. g3
{[%clk 0:00:06.7]} 37... Qxd7 {[%clk 0:00:04.1]} 38. Qc4 {[%clk 0:00:04.8]}
38... h5 {[%clk 0:00:02.7]} 39. Ra2 {[%clk 0:00:03.9]} 39... Qd4 {[%clk
0:00:02.3]} 40. Qxd4 {[%clk 0:00:03.6]} 40... Bxd4 {[%clk 0:00:03.2]} 41. Rxa4
{[%clk 0:00:03.8]} 41... Bxf2 {[%clk 0:00:03.6]} 42. Kg2 {[%clk 0:00:04.4]}
42... Bc5 {[%clk 0:00:03.9]} 43. Kf3 {[%clk 0:00:04.4]} 43... Be7 {[%clk
0:00:04.2]} 44. h4 {[%clk 0:00:05.1]} 44... Bd6 {[%clk 0:00:04.5]} 45. Ra6
{[%clk 0:00:05]} 45... Bb8 {[%clk 0:00:04.5]} 46. Rc6 {[%clk 0:00:05.1]} 46...
Ba7 {[%clk 0:00:04.6]} 47. Rc7 {[%clk 0:00:05.2]} 47... Bb8 {[%clk 0:00:05]} 48.
Rb7 {[%clk 0:00:05.5]} 48... Bd6 {[%clk 0:00:05.7]} 49. Rb6 {[%clk 0:00:05.7]}
49... Bc5 {[%clk 0:00:06]} 50. Rc6 {[%clk 0:00:05.9]} 50... Ba7 {[%clk
0:00:06.3]} 51. Rc7 {[%clk 0:00:05.9]} 51... Bb8 {[%clk 0:00:07]} 52. Rb7 {[%clk
0:00:06.2]} 52... Bd6 {[%clk 0:00:07.5]} 53. Rb6 {[%clk 0:00:06.6]} 53... Bc5
{[%clk 0:00:08.1]} 54. Rc6 {[%clk 0:00:06.9]} 54... Ba7 {[%clk 0:00:08.8]}
1/2-1/2

[Event "Early-Titled-Tuesday-Blitz-February-06-2024"]
[Site "Chess.com"]
[Date "2024.02.06"]
[Round "3"]
[White "FairChess_on_YouTube"]
[Black "AlexPapasimakopoulos"]
[Result "0-1"]
[WhiteElo "3073"]
[BlackElo "2773"]
[TimeControl "180+1"]
[EndTime "8:28:35 PST"]
[Termination "AlexPapasimakopoulos won on time"]

1. d4 {[%clk 0:03:00.9]} 1... d5 {[%clk 0:02:55.5]} 2. c4 {[%clk 0:03:01]} 2...
e6 {[%clk 0:02:56]} 3. Nf3 {[%clk 0:03:00.3]} 3... a6 {[%clk 0:02:55.7]} 4. cxd5
{[%clk 0:02:56.2]} 4... exd5 {[%clk 0:02:56.6]} 5. Nc3 {[%clk 0:02:56]} 5... c6
{[%clk 0:02:56.9]} 6. Qb3 {[%clk 0:02:46.5]} 6... Nf6 {[%clk 0:02:51.9]} 7. Bg5
{[%clk 0:02:40.5]} 7... Be7 {[%clk 0:02:52.1]} 8. e3 {[%clk 0:02:40.3]} 8... O-O
{[%clk 0:02:51.4]} 9. Bd3 {[%clk 0:02:39.4]} 9... Nbd7 {[%clk 0:02:51.6]} 10.
O-O {[%clk 0:02:37.3]} 10... Re8 {[%clk 0:02:49.9]} 11. Rac1 {[%clk 0:02:30.4]}
11... Nf8 {[%clk 0:02:47.8]} 12. Ne5 {[%clk 0:02:24.6]} 12... N6d7 {[%clk
0:02:47.7]} 13. Bxe7 {[%clk 0:02:07.7]} 13... Qxe7 {[%clk 0:02:45.2]} 14. Nxd7
{[%clk 0:02:06.9]} 14... Nxd7 {[%clk 0:02:33.5]} 15. e4 {[%clk 0:01:54.6]} 15...
dxe4 {[%clk 0:02:28.3]} 16. Nxe4 {[%clk 0:01:55.5]} 16... Nf6 {[%clk 0:02:27.8]}
17. Ng5 {[%clk 0:01:54.4]} 17... h6 {[%clk 0:02:19.5]} 18. Nf3 {[%clk
0:01:32.3]} 18... Be6 {[%clk 0:02:19.7]} 19. Bc4 {[%clk 0:01:28.7]} 19... Bxc4
{[%clk 0:02:13.5]} 20. Qxc4 {[%clk 0:01:29.6]} 20... Rad8 {[%clk 0:02:11.6]} 21.
Qb3 {[%clk 0:01:28]} 21... Nd5 {[%clk 0:02:04.5]} 22. Rfe1 {[%clk 0:01:26.4]}
22... Qd7 {[%clk 0:02:03.2]} 23. Ne5 {[%clk 0:01:23.9]} 23... Qc8 {[%clk
0:02:01.9]} 24. Re4 {[%clk 0:01:21.1]} 24... f6 {[%clk 0:01:59.3]} 25. Rce1
{[%clk 0:00:58]} 25... fxe5 {[%clk 0:01:59.4]} 26. dxe5 {[%clk 0:00:58.9]} 26...
Re7 {[%clk 0:01:53.4]} 27. f4 {[%clk 0:00:57.6]} 27... Qf5 {[%clk 0:01:51.2]}
28. g3 {[%clk 0:00:56.1]} 28... Kh8 {[%clk 0:01:51.3]} 29. e6 {[%clk 0:00:52.9]}
29... Rde8 {[%clk 0:01:51.2]} 30. Re5 {[%clk 0:00:53.2]} 30... Qg4 {[%clk
0:01:47.5]} 31. f5 {[%clk 0:00:50.2]} 31... Qd4+ {[%clk 0:01:32.1]} 32. Kg2
{[%clk 0:00:45.1]} 32... Nf6 {[%clk 0:01:31.3]} 33. h3 {[%clk 0:00:37.4]} 33...
c5 {[%clk 0:01:30]} 34. R5e2 {[%clk 0:00:30.5]} 34... Rd8 {[%clk 0:01:28.6]} 35.
Qf3 {[%clk 0:00:29.6]} 35... b5 {[%clk 0:01:25.9]} 36. g4 {[%clk 0:00:29.5]}
36... c4 {[%clk 0:01:26]} 37. a3 {[%clk 0:00:29.3]} 37... Kg8 {[%clk 0:01:23.9]}
38. Rf2 {[%clk 0:00:26.1]} 38... Qd5 {[%clk 0:01:22.7]} 39. Ree2 {[%clk
0:00:23.1]} 39... Qxf3+ {[%clk 0:01:22.6]} 40. Kxf3 {[%clk 0:00:23.5]} 40...
Rd3+ {[%clk 0:01:22.5]} 41. Re3 {[%clk 0:00:23.2]} 41... Rd1 {[%clk 0:01:21.1]}
42. Re5 {[%clk 0:00:21.7]} 42... Rd3+ {[%clk 0:01:16.8]} 43. Re3 {[%clk
0:00:22]} 43... Rd5 {[%clk 0:01:17.3]} 44. Rg2 {[%clk 0:00:19.8]} 44... Kf8
{[%clk 0:01:16.1]} 45. Kf4 {[%clk 0:00:18.5]} 45... Rd4+ {[%clk 0:01:12]} 46.
Kf3 {[%clk 0:00:18.9]} 46... Rd5 {[%clk 0:01:12]} 47. Kf4 {[%clk 0:00:18.9]}
47... Rd1 {[%clk 0:01:12.6]} 48. Kf3 {[%clk 0:00:18.3]} 48... Rc7 {[%clk
0:01:02.1]} 49. h4 {[%clk 0:00:18.4]} 49... Rc5 {[%clk 0:01:02.1]} 50. Ke2
{[%clk 0:00:12]} 50... Rd4 {[%clk 0:00:56.2]} 51. g5 {[%clk 0:00:12.5]} 51...
hxg5 {[%clk 0:00:56.2]} 52. hxg5 {[%clk 0:00:13.4]} 52... Nd5 {[%clk 0:00:56.4]}
53. Rh3 {[%clk 0:00:11.9]} 53... Nf4+ {[%clk 0:00:56.6]} 54. Ke3 {[%clk
0:00:12.5]} 54... Rd3+ {[%clk 0:00:54.6]} 55. Kxf4 {[%clk 0:00:12.4]} 55... Rxh3
{[%clk 0:00:55.2]} 56. f6 {[%clk 0:00:12.8]} 56... Rh4+ {[%clk 0:00:51.9]} 57.
Kf3 {[%clk 0:00:08.2]} 57... gxf6 {[%clk 0:00:48.2]} 58. gxf6 {[%clk 0:00:06.8]}
58... Rf5+ {[%clk 0:00:48.9]} 59. Kg3 {[%clk 0:00:07.5]} 59... Rg5+ {[%clk
0:00:48.6]} 60. Kxh4 {[%clk 0:00:08.1]} 60... Rxg2 {[%clk 0:00:49.3]} 61. Kh5
{[%clk 0:00:08.8]} 61... Rxb2 {[%clk 0:00:48.1]} 62. Kg6 {[%clk 0:00:09.4]}
62... Rg2+ {[%clk 0:00:48.6]} 63. Kf5 {[%clk 0:00:08.7]} 63... Re2 {[%clk
0:00:47.9]} 64. f7 {[%clk 0:00:07.9]} 64... Ke7 {[%clk 0:00:47.2]} 65. Kg6
{[%clk 0:00:08.1]} 65... Rf2 {[%clk 0:00:47.3]} 66. f8=Q+ {[%clk 0:00:07.2]}
66... Rxf8 {[%clk 0:00:46.2]} 0-1

[Event "Early-Titled-Tuesday-Blitz-February-06-2024"]
[Site "Chess.com"]
[Date "2024.02.06"]
[Round "3"]
[White "ChessSG1"]
[Black "OrtizAnahi2001"]
[Result "1-0"]
[WhiteElo "2442"]
[BlackElo "2602"]
[TimeControl "180+1"]
[EndTime "8:28:35 PST"]
[Termination "ChessSG1 won by resignation"]

1. c4 {[%clk 0:03:00.9]} 1... Nf6 {[%clk 0:02:57.4]} 2. g3 {[%clk 0:03:01.3]}
2... e6 {[%clk 0:02:54.9]} 3. Bg2 {[%clk 0:03:01.4]} 3... d5 {[%clk 0:02:55]} 4.
Nf3 {[%clk 0:03:01.8]} 4... c6 {[%clk 0:02:55]} 5. O-O {[%clk 0:03:01.5]} 5...
Be7 {[%clk 0:02:55.1]} 6. b3 {[%clk 0:03:01.5]} 6... O-O {[%clk 0:02:55.2]} 7.
Bb2 {[%clk 0:03:01.8]} 7... b6 {[%clk 0:02:55.2]} 8. d4 {[%clk 0:02:59.2]} 8...
Bb7 {[%clk 0:02:55.3]} 9. Nbd2 {[%clk 0:02:59.8]} 9... Nbd7 {[%clk 0:02:54.6]}
10. Qc2 {[%clk 0:02:59]} 10... Rc8 {[%clk 0:02:53.8]} 11. e4 {[%clk 0:02:56.9]}
11... dxe4 {[%clk 0:02:50.3]} 12. Nxe4 {[%clk 0:02:57.8]} 12... Nxe4 {[%clk
0:02:50.3]} 13. Qxe4 {[%clk 0:02:58.1]} 13... Nf6 {[%clk 0:02:50.5]} 14. Qc2
{[%clk 0:02:50.9]} 14... Qc7 {[%clk 0:02:50.4]} 15. Rad1 {[%clk 0:02:47.1]}
15... c5 {[%clk 0:02:49.9]} 16. dxc5 {[%clk 0:02:46.7]} 16... Qxc5 {[%clk
0:02:30.2]} 17. Ng5 {[%clk 0:01:56.7]} 17... Qxg5 {[%clk 0:02:27.8]} 18. Bxb7
{[%clk 0:01:56.4]} 18... Rcd8 {[%clk 0:02:26.2]} 19. Bf3 {[%clk 0:01:54]} 19...
h5 {[%clk 0:02:19.5]} 20. h4 {[%clk 0:01:53.3]} 20... Qc5 {[%clk 0:02:07.6]} 21.
Kg2 {[%clk 0:01:43.8]} 21... b5 {[%clk 0:01:56.5]} 22. Qe2 {[%clk 0:01:28.7]}
22... bxc4 {[%clk 0:01:52.2]} 23. Qxc4 {[%clk 0:01:26]} 23... Qxc4 {[%clk
0:01:49.6]} 24. bxc4 {[%clk 0:01:26.9]} 24... Rc8 {[%clk 0:01:49.4]} 25. Rc1
{[%clk 0:01:26.5]} 25... Rfd8 {[%clk 0:01:48.2]} 26. Rfd1 {[%clk 0:01:10.3]}
26... Rxd1 {[%clk 0:01:38.9]} 27. Bxd1 {[%clk 0:01:11.2]} 27... g6 {[%clk
0:01:36.2]} 28. Bd4 {[%clk 0:01:04]} 28... Nd7 {[%clk 0:01:32.9]} 29. Be2 {[%clk
0:00:39.6]} 29... Bc5 {[%clk 0:01:23]} 30. Bc3 {[%clk 0:00:35.7]} 30... Nb6
{[%clk 0:01:05.8]} 31. Bd2 {[%clk 0:00:20.5]} 31... Rd8 {[%clk 0:01:01.3]} 32.
Bg5 {[%clk 0:00:17.9]} 32... Rd7 {[%clk 0:00:57.8]} 33. Kf1 {[%clk 0:00:15.8]}
33... Kg7 {[%clk 0:00:57.1]} 34. Be3 {[%clk 0:00:09.7]} 34... Bxe3 {[%clk
0:00:45]} 35. fxe3 {[%clk 0:00:10]} 35... Rc7 {[%clk 0:00:45.1]} 36. c5 {[%clk
0:00:08]} 36... Nd5 {[%clk 0:00:43.6]} 37. Kf2 {[%clk 0:00:05.4]} 37... Kf6
{[%clk 0:00:43.1]} 38. c6 {[%clk 0:00:03.8]} 38... Ke5 {[%clk 0:00:43.2]} 39.
Bb5 {[%clk 0:00:03.5]} 39... Kd6 {[%clk 0:00:42.3]} 40. e4 {[%clk 0:00:03.5]}
40... Nb6 {[%clk 0:00:38.7]} 41. a4 {[%clk 0:00:02.4]} 41... a5 {[%clk
0:00:37.9]} 42. Rd1+ {[%clk 0:00:01.8]} 42... Ke5 {[%clk 0:00:36.6]} 43. Rd7
{[%clk 0:00:01.2]} 43... Nxd7 {[%clk 0:00:35.3]} 44. cxd7 {[%clk 0:00:01.5]}
44... Rxd7 {[%clk 0:00:20.2]} 45. Bxd7 {[%clk 0:00:02]} 45... Kxe4 {[%clk
0:00:20.5]} 46. Be8 {[%clk 0:00:02]} 1-0

[Event "Early-Titled-Tuesday-Blitz-February-06-2024"]
[Site "Chess.com"]
[Date "2024.02.06"]
[Round "3"]
[White "LiadCuba"]
[Black "Chernobay_Artem"]
[Result "1-0"]
[WhiteElo "2460"]
[BlackElo "2642"]
[TimeControl "180+1"]
[EndTime "8:28:36 PST"]
[Termination "LiadCuba won on time"]

1. d4 {[%clk 0:03:00.9]} 1... Nf6 {[%clk 0:02:39.5]} 2. c4 {[%clk 0:03:00.8]}
2... g6 {[%clk 0:02:39.1]} 3. Nc3 {[%clk 0:03:00.9]} 3... Bg7 {[%clk 0:02:38.1]}
4. e4 {[%clk 0:03:01]} 4... d6 {[%clk 0:02:38.4]} 5. Be2 {[%clk 0:03:01.3]} 5...
O-O {[%clk 0:02:38.2]} 6. Be3 {[%clk 0:03:01.6]} 6... Na6 {[%clk 0:02:33.7]} 7.
h4 {[%clk 0:02:56.1]} 7... e5 {[%clk 0:02:21.4]} 8. d5 {[%clk 0:02:55.9]} 8...
Nc5 {[%clk 0:02:21.8]} 9. Qc2 {[%clk 0:02:56.2]} 9... a5 {[%clk 0:02:18.2]} 10.
h5 {[%clk 0:02:55.1]} 10... Bd7 {[%clk 0:02:11.4]} 11. hxg6 {[%clk 0:02:38.6]}
11... fxg6 {[%clk 0:02:11.3]} 12. f3 {[%clk 0:02:38.6]} 12... Nh5 {[%clk
0:02:04.3]} 13. Nh3 {[%clk 0:02:23.2]} 13... Nf4 {[%clk 0:01:42.2]} 14. Nxf4
{[%clk 0:02:09.7]} 14... exf4 {[%clk 0:01:43]} 15. Bf2 {[%clk 0:02:10]} 15... a4
{[%clk 0:01:42.8]} 16. O-O-O {[%clk 0:01:40.3]} 16... a3 {[%clk 0:01:28.9]} 17.
b3 {[%clk 0:01:25.4]} 17... Na6 {[%clk 0:01:20.8]} 18. Qd2 {[%clk 0:01:17.3]}
18... Nb4 {[%clk 0:01:14.8]} 19. Bd4 {[%clk 0:01:12.8]} 19... Bxd4 {[%clk
0:00:41.4]} 20. Qxd4 {[%clk 0:01:13.7]} 20... Qf6 {[%clk 0:00:38]} 21. Kb1
{[%clk 0:01:06.9]} 21... Qxd4 {[%clk 0:00:36.7]} 22. Rxd4 {[%clk 0:01:07.8]}
22... Kg7 {[%clk 0:00:33.8]} 23. Nd1 {[%clk 0:00:57.9]} 23... h5 {[%clk
0:00:30.4]} 24. Nf2 {[%clk 0:00:56.9]} 24... Kf6 {[%clk 0:00:25.9]} 25. Rc1
{[%clk 0:00:21.9]} 25... Ke5 {[%clk 0:00:24.5]} 26. Rdd1 {[%clk 0:00:21.5]}
26... b6 {[%clk 0:00:23]} 27. Rh1 {[%clk 0:00:18.6]} 27... Rh8 {[%clk
0:00:22.4]} 28. Rcd1 {[%clk 0:00:16.3]} 28... g5 {[%clk 0:00:20.8]} 29. Rd2
{[%clk 0:00:15.8]} 29... Rag8 {[%clk 0:00:18.9]} 30. Bd1 {[%clk 0:00:13.2]}
30... g4 {[%clk 0:00:18.3]} 31. fxg4 {[%clk 0:00:14.1]} 31... hxg4 {[%clk
0:00:17]} 32. Rxh8 {[%clk 0:00:13.9]} 32... Rxh8 {[%clk 0:00:16.5]} 33. Nxg4+
{[%clk 0:00:13.1]} 33... Bxg4 {[%clk 0:00:13.4]} 34. Bxg4 {[%clk 0:00:14]} 34...
Kxe4 {[%clk 0:00:09.4]} 35. Bh3 {[%clk 0:00:07.9]} 35... Ke3 {[%clk 0:00:08]}
36. Rd1 {[%clk 0:00:07.4]} 36... f3 {[%clk 0:00:07.3]} 37. Re1+ {[%clk
0:00:07.3]} 37... Kf2 {[%clk 0:00:06.9]} 38. Rh1 {[%clk 0:00:05]} 38... fxg2
{[%clk 0:00:06.6]} 39. Bxg2 {[%clk 0:00:05.9]} 39... Re8 {[%clk 0:00:05.8]} 40.
Bh3 {[%clk 0:00:05.2]} 40... Kg3 {[%clk 0:00:04.2]} 41. Be6 {[%clk 0:00:05.2]}
41... Re7 {[%clk 0:00:04.6]} 42. Rh6 {[%clk 0:00:02.9]} 42... Kf4 {[%clk
0:00:03]} 43. Rf6+ {[%clk 0:00:03]} 43... Ke5 {[%clk 0:00:01]} 44. Rf2 {[%clk
0:00:03.9]} 1-0

[Event "Early-Titled-Tuesday-Blitz-February-06-2024"]
[Site "Chess.com"]
[Date "2024.02.06"]
[Round "3"]
[White "Janosik"]
[Black "marcodobrikov"]
[Result "0-1"]
[WhiteElo "2860"]
[BlackElo "2686"]
[TimeControl "180+1"]
[EndTime "8:28:37 PST"]
[Termination "marcodobrikov won by checkmate"]

1. d4 {[%clk 0:03:00.9]} 1... Nf6 {[%clk 0:02:57.4]} 2. c4 {[%clk 0:02:59.3]}
2... g6 {[%clk 0:02:56.7]} 3. Nf3 {[%clk 0:02:55.7]} 3... Bg7 {[%clk 0:02:54.3]}
4. e3 {[%clk 0:02:55.9]} 4... O-O {[%clk 0:02:53.9]} 5. Be2 {[%clk 0:02:56.2]}
5... b6 {[%clk 0:02:48.8]} 6. O-O {[%clk 0:02:55.1]} 6... Bb7 {[%clk 0:02:49]}
7. b3 {[%clk 0:02:55.1]} 7... d6 {[%clk 0:02:48.4]} 8. Bb2 {[%clk 0:02:55.4]}
8... Nbd7 {[%clk 0:02:48.8]} 9. Nc3 {[%clk 0:02:49.6]} 9... Ne4 {[%clk
0:02:43.7]} 10. Qc2 {[%clk 0:02:49.8]} 10... Nxc3 {[%clk 0:02:41]} 11. Bxc3
{[%clk 0:02:50.7]} 11... e5 {[%clk 0:02:38.3]} 12. d5 {[%clk 0:02:35.1]} 12...
a5 {[%clk 0:02:37.6]} 13. a3 {[%clk 0:02:35.1]} 13... f5 {[%clk 0:02:34.9]} 14.
b4 {[%clk 0:02:35.1]} 14... axb4 {[%clk 0:02:34.1]} 15. axb4 {[%clk 0:02:36]}
15... b5 {[%clk 0:02:30.2]} 16. cxb5 {[%clk 0:02:33.3]} 16... Bxd5 {[%clk
0:02:25.4]} 17. Rad1 {[%clk 0:02:33]} 17... Be6 {[%clk 0:02:21.8]} 18. Nd2
{[%clk 0:02:29.6]} 18... Nb6 {[%clk 0:02:21.3]} 19. Bf3 {[%clk 0:02:26]} 19...
Ra3 {[%clk 0:02:17.9]} 20. Bc6 {[%clk 0:02:21.3]} 20... Qh4 {[%clk 0:01:55]} 21.
Ra1 {[%clk 0:02:16.5]} 21... Rxa1 {[%clk 0:01:40.8]} 22. Rxa1 {[%clk 0:02:14.6]}
22... Nd5 {[%clk 0:01:22.7]} 23. Bxd5 {[%clk 0:01:40]} 23... Bxd5 {[%clk
0:01:22.6]} 24. Qd3 {[%clk 0:01:40.6]} 24... Be6 {[%clk 0:01:11.2]} 25. Ra7
{[%clk 0:01:23.4]} 25... d5 {[%clk 0:01:01]} 26. Rxc7 {[%clk 0:00:52.7]} 26...
d4 {[%clk 0:01:01.2]} 27. Bb2 {[%clk 0:00:23.5]} 27... e4 {[%clk 0:00:58.7]} 28.
Rxg7+ {[%clk 0:00:22.9]} 28... Kxg7 {[%clk 0:00:54.9]} 29. Qxd4+ {[%clk
0:00:23.8]} 29... Kf7 {[%clk 0:00:55]} 30. Qg7+ {[%clk 0:00:21.8]} 30... Ke8
{[%clk 0:00:55.4]} 31. b6 {[%clk 0:00:19.5]} 31... Qe7 {[%clk 0:00:52.5]} 32.
Qe5 {[%clk 0:00:16.7]} 32... Bc8 {[%clk 0:00:50.2]} 33. Qa5 {[%clk 0:00:15.4]}
33... Qd6 {[%clk 0:00:44.8]} 34. Bd4 {[%clk 0:00:15.7]} 34... Bb7 {[%clk
0:00:39.3]} 35. h4 {[%clk 0:00:15.4]} 35... Kd7 {[%clk 0:00:37.2]} 36. Nc4
{[%clk 0:00:15.7]} 36... Qd5 {[%clk 0:00:35.4]} 37. Ne5+ {[%clk 0:00:16.1]}
37... Ke6 {[%clk 0:00:35.4]} 38. Qa3 {[%clk 0:00:15]} 38... Ra8 {[%clk
0:00:34.4]} 39. Qc3 {[%clk 0:00:14.6]} 39... Rc8 {[%clk 0:00:31.7]} 40. Qd2
{[%clk 0:00:14.7]} 40... f4 {[%clk 0:00:28.2]} 41. Kh2 {[%clk 0:00:14.5]} 41...
f3 {[%clk 0:00:26.6]} 42. gxf3 {[%clk 0:00:14.1]} 42... exf3 {[%clk 0:00:25.6]}
43. Qd3 {[%clk 0:00:12.4]} 43... Rc1 {[%clk 0:00:19.5]} 44. Kg3 {[%clk
0:00:06.4]} 44... Rg1+ {[%clk 0:00:17.7]} 45. Kh3 {[%clk 0:00:06.9]} 45... Rg2
{[%clk 0:00:15.9]} 46. Ng4 {[%clk 0:00:06.1]} 46... Qf5 {[%clk 0:00:14.3]} 47.
Qc4+ {[%clk 0:00:04.7]} 47... Qd5 {[%clk 0:00:12.4]} 48. Qc7 {[%clk 0:00:04.4]}
48... Qf5 {[%clk 0:00:09.1]} 49. Qc4+ {[%clk 0:00:03]} 49... Kd7 {[%clk
0:00:06.5]} 50. Qc7+ {[%clk 0:00:03]} 50... Ke8 {[%clk 0:00:07]} 51. Qb8+ {[%clk
0:00:03.1]} 51... Bc8 {[%clk 0:00:07.4]} 52. Qf4 {[%clk 0:00:03.3]} 52... Qxg4+
{[%clk 0:00:07.2]} 53. Qxg4 {[%clk 0:00:03.7]} 53... Bxg4# {[%clk 0:00:07.7]}
0-1

[Event "Early-Titled-Tuesday-Blitz-February-06-2024"]
[Site "Chess.com"]
[Date "2024.02.06"]
[Round "3"]
[White "Baby_Legs"]
[Black "OparinGrigoriy"]
[Result "0-1"]
[WhiteElo "2640"]
[BlackElo "2997"]
[TimeControl "180+1"]
[EndTime "8:28:37 PST"]
[Termination "OparinGrigoriy won by resignation"]

1. d4 {[%clk 0:02:59]} 1... a6 {[%clk 0:03:00.9]} 2. e4 {[%clk 0:02:58.7]} 2...
c6 {[%clk 0:03:00.7]} 3. Nf3 {[%clk 0:02:53.1]} 3... d5 {[%clk 0:03:01.2]} 4.
exd5 {[%clk 0:02:46.9]} 4... cxd5 {[%clk 0:03:01.1]} 5. Bd3 {[%clk 0:02:47.1]}
5... Nc6 {[%clk 0:03:00.3]} 6. c3 {[%clk 0:02:46.7]} 6... Bg4 {[%clk 0:03:00.1]}
7. Bf4 {[%clk 0:02:46.4]} 7... e6 {[%clk 0:02:59.7]} 8. Nbd2 {[%clk 0:02:46.9]}
8... Bd6 {[%clk 0:02:58.4]} 9. Bxd6 {[%clk 0:02:46.9]} 9... Qxd6 {[%clk
0:02:59.1]} 10. h3 {[%clk 0:02:47.5]} 10... Bh5 {[%clk 0:02:58.4]} 11. O-O
{[%clk 0:02:46.4]} 11... Nf6 {[%clk 0:02:56.7]} 12. Re1 {[%clk 0:02:46.7]} 12...
O-O {[%clk 0:02:56.1]} 13. a4 {[%clk 0:02:44.8]} 13... Qc7 {[%clk 0:02:52.8]}
14. Qb3 {[%clk 0:02:38.1]} 14... Rfc8 {[%clk 0:02:39.6]} 15. Qa3 {[%clk
0:02:34.2]} 15... Na5 {[%clk 0:02:26.9]} 16. Ne5 {[%clk 0:02:28.6]} 16... Rab8
{[%clk 0:02:24.9]} 17. Nb3 {[%clk 0:02:04.6]} 17... Nxb3 {[%clk 0:02:22.2]} 18.
Qxb3 {[%clk 0:02:05.5]} 18... Nd7 {[%clk 0:02:17.9]} 19. Qc2 {[%clk 0:01:53.7]}
19... Bg6 {[%clk 0:02:08.5]} 20. Bxg6 {[%clk 0:01:52.7]} 20... hxg6 {[%clk
0:02:09.4]} 21. Nd3 {[%clk 0:01:52.5]} 21... a5 {[%clk 0:02:02.3]} 22. Re3
{[%clk 0:01:49.9]} 22... b5 {[%clk 0:02:02]} 23. axb5 {[%clk 0:01:49.6]} 23...
Rxb5 {[%clk 0:02:02.9]} 24. Qe2 {[%clk 0:01:49.2]} 24... Rcb8 {[%clk 0:02:02.7]}
25. Re1 {[%clk 0:01:31.2]} 25... Nf6 {[%clk 0:02:02.7]} 26. f3 {[%clk 0:01:25]}
26... Nh5 {[%clk 0:01:59.2]} 27. Re5 {[%clk 0:01:19.3]} 27... Ng3 {[%clk
0:01:50.3]} 28. Qf2 {[%clk 0:01:19.3]} 28... Nf5 {[%clk 0:01:50.9]} 29. R5e2
{[%clk 0:01:17.8]} 29... Nd6 {[%clk 0:01:44.5]} 30. Ra1 {[%clk 0:01:13.7]} 30...
Nc4 {[%clk 0:01:44.2]} 31. Ra2 {[%clk 0:01:12.7]} 31... R5b6 {[%clk 0:01:38]}
32. Qe1 {[%clk 0:01:11.9]} 32... Qd8 {[%clk 0:01:23.9]} 33. Qg3 {[%clk
0:01:09.8]} 33... Qd7 {[%clk 0:01:19.4]} 34. h4 {[%clk 0:01:07.2]} 34... Qb5
{[%clk 0:01:19.4]} 35. h5 {[%clk 0:00:55.4]} 35... gxh5 {[%clk 0:01:12.9]} 36.
Nf4 {[%clk 0:00:55.6]} 36... Nd6 {[%clk 0:01:06.2]} 37. Nxh5 {[%clk 0:00:51.5]}
37... Nf5 {[%clk 0:01:06.5]} 38. Qf2 {[%clk 0:00:41.6]} 38... a4 {[%clk
0:01:03.9]} 39. Nf4 {[%clk 0:00:38.7]} 39... Qc4 {[%clk 0:00:56.9]} 40. Ra1
{[%clk 0:00:36.5]} 40... Rb3 {[%clk 0:00:56.4]} 41. g4 {[%clk 0:00:32]} 41...
Nd6 {[%clk 0:00:51.5]} 42. Qh2 {[%clk 0:00:28.6]} 42... a3 {[%clk 0:00:47.3]}
43. Kf2 {[%clk 0:00:20.2]} 43... f6 {[%clk 0:00:08.6]} 44. bxa3 {[%clk
0:00:16.1]} 44... Qxc3 {[%clk 0:00:07.1]} 45. Nxe6 {[%clk 0:00:13.1]} 45...
Qxf3+ {[%clk 0:00:05.2]} 46. Kg1 {[%clk 0:00:13.2]} 46... Rb1+ {[%clk
0:00:05.3]} 47. Re1 {[%clk 0:00:13.8]} 47... Rxa1 {[%clk 0:00:03.8]} 48. Rxa1
{[%clk 0:00:13.7]} 48... Qxg4+ {[%clk 0:00:02.8]} 49. Kh1 {[%clk 0:00:13.6]}
49... Qxe6 {[%clk 0:00:03.4]} 50. Rg1 {[%clk 0:00:13.5]} 50... Rb7 {[%clk
0:00:02]} 51. Qg3 {[%clk 0:00:12.4]} 51... Re7 {[%clk 0:00:02.7]} 52. a4 {[%clk
0:00:12]} 52... Ne4 {[%clk 0:00:03.4]} 53. Qg2 {[%clk 0:00:11.9]} 53... Qf5
{[%clk 0:00:03.3]} 54. a5 {[%clk 0:00:11.9]} 54... Qh5+ {[%clk 0:00:03.4]} 55.
Qh2 {[%clk 0:00:12.5]} 55... Qxh2+ {[%clk 0:00:03.9]} 56. Kxh2 {[%clk
0:00:13.4]} 56... Ra7 {[%clk 0:00:04.3]} 0-1